Cogmind - Beta 11 @@@ ROGUE MODE // 2022.03.22 @ 18:14:20 Player: the cat Result: Destroyed by D-53 Grenadier with Mini Grenade Launcher Performance ------------- Evolutions (0) 0 Regions Visited (2) 400 Robots Destroyed (1) 5 Value Destroyed (34) 34 Prototype IDs (0) 0 Alien Tech Used (0) 0 Bonus (0) 0 TOTAL SCORE: 439 Bonus ------- None Cogmind --------- Core Integrity 0/250 Matter 287/300 Energy 99/100 System Corruption 0% Temperature Cool (0) Movement Core (50) Location -10/Mines Parts ------- > --- POWER (1) -------- (None) > --- PROPULSION (2) --- (None) > --- UTILITY (2) ------ (None) > --- WEAPON (2) ------- (None) > --- INVENTORY (5) ---- High-capacity Battery (250) EM Pulse Gun Medium Laser Medium Laser Medium Laser Peak State ------------ > --- POWER ------------ Light Ion Engine > --- PROPULSION ------- Light Treads Wheel > --- UTILITY ---------- Huge Storage Unit Transport Network Coupler > --- WEAPON ----------- Medium Laser Light Assault Rifle > --- INVENTORY -------- Light Ion Engine Light Treads Wheel Medium Storage Unit High-capacity Battery Tractor Beam EM Pulse Gun Medium Laser Medium Laser Light Cannon [Rating: 8] Favorites ----------- Power Light Ion Engine Engine Light Ion Engine Propulsion Wheel Treads Light Treads Wheel Wheel Utility Transport Network Coupler Storage Huge Storage Unit Processor Transport Network Coupler Weapon Light Assault Rifle Energy Gun Medium Laser Ballistic Gun Light Assault Rifle Build | -11 -10 -10 ------- Run | Scr Mat Min Slots Evolved . | . . . Power . | . . . Propulsion . | . . . Utility . | . . . Weapon . | . . . Parts Attached 12 | 9 2 1 Power 1 | 1 . . Engine 1 | 1 . . Core . | . . . Reactor . | . . . Propulsion 3 | 3 . . Treads 1 | 1 . . Leg . | . . . Wheel 2 | 2 . . Hover . | . . . Flight . | . . . Utility 3 | 1 2 . Device . | . . . Storage 2 | 1 1 . Processor 1 | . 1 . Hackware . | . . . Protection . | . . . Artifact . | . . . Weapon 5 | 4 . 1 Energy Gun 3 | 3 . . Energy Cannon . | . . . Ballistic Gun 2 | 1 . 1 Ballistic Cannon . | . . . Launcher . | . . . Special Weapon . | . . . Impact Weapon . | . . . Slashing Weapon . | . . . Piercing Weapon . | . . . Special Melee Weapon . | . . . Unidentified Prototypes . | . . . Parts Lost 2 | . . 2 Power 1 | . . 1 Propulsion . | . . . Utility . | . . . Weapon 1 | . . 1 Highest Loss Streak 1 | . . 1 To Critical Strikes . | . . . Average Slot Usage (%) 91 | . 96 87 Engine 12 | . 14 11 Treads 12 | . 14 12 Wheel 12 | . 14 12 Storage 12 | . 14 12 Processor 11 | . 10 12 Energy Gun 12 | . 14 12 Ballistic Gun 13 | . 14 12 Naked Turns 50 | . . 50 Heaviest Build 86 | 11 86 86 Greatest Support 20 | 20 10 10 Greatest Overweight (x) 8 | 1 8 8 Average Overweight (x) 4 | . 4 4 Largest Inventory Capacity 25 | 8 25 25 Average Capacity 20 | 6 19 22 Most Carried 11 | 5 11 11 Average Carried 8 | 3 6 10 Final Capacity 25 | 8 25 5 Final Carried 11 | 4 11 5 Class Distribution -------------------- 100% | Mutant Dominant Class ---------------- Mutant | -10/Materials Mutant | -10/Mines Resources | -11 -10 -10 ----------- Run | Scr Mat Min Matter Collected 295 | 224 46 25 Remotely . | . . . Salvage Created 46 | . 46 . Parts . | . . . Haulers Intercepted . | . . . Recyclers Shooed . | . . . Parts Field Recycled . | . . . Retrieved Matter . | . . . Parts Self-Destructed . | . . . Prevented . | . . . Kills | -11 -10 -10 ------- Run | Scr Mat Min Combat Hostiles Destroyed 1 | . 1 . Classes Destroyed 1 | . 1 . Grunt 1 | . 1 . Best Kill Streak 1 | . 1 . Combat Bots Only 1 | . 1 . Max Kills in Single Turn 1 | . 1 . Gunslinging . | . . . Exploded . | . . . Melee . | . . . Uniques/NPCs Destroyed . | . . . Combat | -11 -10 -10 -------- Run | Scr Mat Min Damage Taken 471 | . 32 439 Core 256 | . 10 246 Absorbed by Shields . | . . . Core Remaining (%) 100 | 100 . . Volleys Fired 7 | . 4 3 Largest 2 | . 2 2 Hottest 70 | . 70 70 Shots Fired 14 | . 8 6 Gun 14 | . 8 6 Cannon . | . . . Launcher . | . . . Special . | . . . Kinetic 7 | . 4 3 Thermal 7 | . 4 3 Explosive . | . . . Electromagnetic . | . . . Robot Hit Streak 7 | . 7 4 Robot Miss Streak 2 | . . 2 Penetration Max . | . . . Secondary Targets . | . . . Shots Hit Robots 11 | . 7 4 Core Hits 1 | . . 1 Critical Kills . | . . . Critical Parts Destroyed . | . . . Critical Strikes 1 | . 1 . Burn 1 | . 1 . Melee Attacks . | . . . Impact . | . . . Slashing . | . . . Piercing . | . . . Sneak Attacks . | . . . Combat Hostiles . | . . . Follow-up Attacks . | . . . Damage Inflicted 129 | . 77 52 Guns 117 | . 77 40 Cannons . | . . . Explosions . | . . . Melee . | . . . Ramming 12 | . . 12 Kinetic 39 | . 25 14 Thermal 78 | . 52 26 Explosive . | . . . Electromagnetic . | . . . Impact . | . . . Slashing . | . . . Piercing . | . . . Highest Corruption . | . . . Average Corruption . | . . . Corruption Purged . | . . . Corruption Blocked . | . . . Overload Shots . | . . . Overflow Damage . | . . . Projectiles . | . . . Explosions . | . . . Melee . | . . . Knockbacks . | . . . Impact . | . . . Kinetic . | . . . Secondary . | . . . Self-Inflicted Damage 6 | . . 6 Shots . | . . . Rammed 2 | . . 2 Targets Rammed 2 | . . 2 Kicked . | . . . Crushed . | . . . Highest Temperature 98 | . 98 65 Average Temperature 44 | . 54 32 Received Heat Transfer 128 | . 18 110 Siege Activations . | . . . Robots Corrupted . | . . . Combat Hostiles . | . . . Parts Fried . | . . . Impact Corruptions . | . . . Robots Melted 1 | . 1 . Combat Hostiles 1 | . 1 . Parts Melted . | . . . Heat Transferred 296 | . 222 74 Parts Sabotaged . | . . . Parts Stolen . | . . . Parts Stripped . | . . . Power Chain Reactions . | . . . Missiles Intercepted . | . . . Alert | -11 -10 -10 ------- Run | Scr Mat Min Peak Influence 55 | . 55 30 Initial 21 | . . 21 Average 18 | . 24 15 Maximum Alert Level . | . . . Low Security (%) 100 | 100 100 100 Level 1 . | . . . Level 2 . | . . . Level 3 . | . . . Level 4 . | . . . Level 5 . | . . . High Security . | . . . Max Security . | . . . Squads Dispatched . | . . . Investigation . | . . . Extermination . | . . . Reinforcement . | . . . Assault . | . . . Garrison . | . . . Intercept . | . . . Searches Triggered . | . . . Construction Impeded . | . . . Haulers Reinforced . | . . . Active Scanning Responses . | . . . Cargo Convoy Interrupts . | . . . Stealth | -11 -10 -10 --------- Run | Scr Mat Min Distress Signals 2 | . 1 1 Communications Jammed . | . . . Distress Signals . | . . . Times Spotted 26 | . 3 23 Peak Tracking Total 17 | . 2 17 Tactical Retreats 3 | . . 3 Traps | -11 -10 -10 ------- Run | Scr Mat Min Traps Triggered . | . . . Indirectly . | . . . Trap Hack Attempts . | . . . Triggered . | . . . Disarmed . | . . . Reprogrammed . | . . . Reused . | . . . Traps Extracted . | . . . Installed . | . . . Triggered . | . . . Machines | -11 -10 -10 ---------- Run | Scr Mat Min Machines Disabled . | . . . Max in Single Turn . | . . . Machines Sabotaged . | . . . Garrisons Compromised . | . . . Overloaded Fab Kills . | . . . Hacking | -11 -10 -10 --------- Run | Scr Mat Min Machines Accessed 2 | . 2 . Terminals 2 | . 2 . Fabricators . | . . . Repair Stations . | . . . Recycling Units . | . . . Scanalyzers . | . . . Garrison Access . | . . . Total Hacks 4 | . 4 . Successful 1 | . 1 . Failed 3 | . 3 . Catastrophic . | . . . Database Lockouts . | . . . Manual 3 | . 3 . Terminals 4 | . 4 . Fabricators . | . . . Repair Stations . | . . . Recycling Units . | . . . Scanalyzers . | . . . Garrison Access . | . . . Terminal Hacks . | . . . Fabricator Hacks . | . . . Repair Station Hacks . | . . . Recycling Unit Hacks . | . . . Scanalyzer . | . . . Garrison Access Hacks . | . . . Unauthorized Hacks 1 | . 1 . Terminals 1 | . 1 . Botnet 1 | . 1 . Fabricators . | . . . Repair Stations . | . . . Recycling Units . | . . . Scanalyzers . | . . . Garrison Access . | . . . Data Cores Recovered . | . . . Used . | . . . Hacking Detections 2 | . 2 . Full Trace Events . | . . . Feedback Events . | . . . Feedback Blocked . | . . . Robot Schematics Acquired . | . . . Robots Built . | . . . Authchips . | . . . Time . | . . . Total Robot Build Rating . | . . . Part Schematics Acquired . | . . . Parts Built . | . . . Authchips . | . . . Time . | . . . Total Part Build Rating . | . . . Parts Repaired . | . . . Time . | . . . Parts Recycled . | . . . Recycled Matter . | . . . Retrieved Matter . | . . . Retrieved Components . | . . . Parts Scanalyzed . | . . . Part Schematics Acquired . | . . . Parts Damaged . | . . . Bothacking | -11 -10 -10 ------------ Run | Scr Mat Min Used RIF Installer . | . . . Robots Hacked . | . . . Non-combat . | . . . Combat . | . . . Robot Hacks Applied . | . . . Relay Couplers Released . | . . . Fabnet Peak Effective % . | . . . Robots Rewired . | . . . Allies Hacked . | . . . Hacks Repelled . | . . . Allies | -11 -10 -10 -------- Run | Scr Mat Min Total Allies . | . . . Largest Group . | . . . Highest-Rated Group . | . . . Highest-Rated Ally . | . . . Total Orders . | . . . Ally Attacks . | . . . Total Damage . | . . . Kills . | . . . Allies Corrupted . | . . . Allies Melted . | . . . Intel | -11 -10 -10 ------- Run | Scr Mat Min Robot Analysis Total . | . . . Derelict Logs Recovered 3 | . . 3 Drone Launches . | . . . Drone Recoveries . | . . . Exploration | -11 -10 -10 ------------- Run | Scr Mat Min Turns Passed 956 | 55 367 534 Spaces Moved 630 | 43 215 372 Core 150 | 2 . 148 Treads . | . . . Legs . | . . . Wheels 480 | 41 215 224 Hover . | . . . Flight . | . . . Fastest Speed 50 | 50 95 50 Average Speed 139 | 85 150 140 Slowest Speed 200 | 95 200 200 Overloaded Moves . | . . . Propulsion Burnouts . | . . . Robots Hopped . | . . . Cave-ins Triggered . | . . . Exploration Rate (%) 39 | 4 42 73 Regions Visited 2 Branch Regions 1 Pre-discovered Areas 2 | . . 2 Known Exits Taken . | . . . Unknown Exits Taken 2 | 1 1 . Scrap Searched 1 | . . 1 Spaces Dug . | . . . Terrain Destroyed . | . . . Melee . | . . . Projectile . | . . . AOE . | . . . Terrain Rammed . | . . . Walls Destroyed . | . . . Machines Disabled . | . . . Actions | -11 -10 -10 --------- Run | Scr Mat Min Total 686 | 56 252 378 Wait 24 | . 24 . Move 628 | 42 214 372 Hop . | . . . Pick Up 12 | 5 7 . Fast Attach 7 | 5 1 1 Attach 1 | 1 . . Detach . | . . . Swap 4 | 3 1 . Drop 1 | . 1 . Fire 7 | . 4 3 Melee . | . . . Ram 2 | . . 2 Kick . | . . . Crush . | . . . Escape Stasis . | . . . Rewire . | . . . Trap . | . . . Miscellaneous . | . . . Route ------- -11/Scrapyard -10/Materials -10/Mines (discovered 1 exit: [*Mat]) History --------- Turn | Location | Event 10 | -11/Scrapyard | Discovered new exit (range 16) 56 | -11/Scrapyard | Entered Materials 308 | -10/Materials | Build established: Mutant 361 | -10/Materials | Discovered new exit (range 7) 423 | -10/Materials | Entered Mines 431 | -10/Mines | Learned location of Zion (-7) 489 | -10/Mines | Learned Materials security intel 858 | -10/Mines | Assembled infested the area 880 | -10/Mines | Released all parts (6) 916 | -10/Mines | Learned location of Storage (-7) 937 | -10/Mines | Discovered new exit (range 5) 954 | -10/Mines | Core integrity fell below 50% 956 | -10/Mines | Core integrity fell below 20% 957 | -10/Mines | Destroyed by D-53 Grenadier with Mini Grenade Launcher Last Messages --------------- 00879_ R-06 Scavenger destroyed. 00880_ Released Wheel. 00880_ Released Lgt. Assault Rifle. 00880_ Released Lgt. Treads. 00880_ Released Med. Laser. 00880_ Released Transport Network Coupler. 00880_ Released Huge Storage Unit. 00883_ T-07 Excavator destroyed. 00890_ Slammed into K-01 Serf. 00916_ Acquired derelict log, extracted data. World map updated: -7/Storage. 00925_ Searching scrap... 00925_ Found Lgt. Assault Rifle. 00925_ Found 25 Matter. 00926_ Acquired 25 matter. 00926_ Acquired Lgt. Assault Rifle. 00937_ EXIT=FOUND 00941_ Slammed into G-34 Mercenary. 00953_ Lgt. Assault Rifle destroyed. [Achievement: Back For More] Map ----- +----------------------------------------------------+ | ????????????# | | ????????????# ############# # | | ????????????# #???#####???# ## | | ????????????# ##### ##??# #? | | ????????????# ##?## ##? | | ????????????# #### ##?### ##?? | | ????????????# #### ##??####??? | | ????????????# #????????? | | ???########## ### #####????????? | | ???# ## #?## #????????????? | | ???# """ #??### #????????????? | | ???# """ ####????# #????????????? | | ???# """ < #??###### #????????????? | | ???# #### #????????????? | | ???########## #????????????? | | ????????????# ###????????????? | | ????????????# ##??????????????# | | ??????????### #?????????????## | | ?????????## ##????????????## | | ?????????# #?????????????# | | ?????????# #?????????????# | | ?????????## d ###??? ?????????## | | ?????????# #### #??????## | | ?????????# ???????? | | ?????????# ???????? | | ?????????##@ d ###### ???????? | | ????????? #????# ????????? | | ??????? ##?????# ??????### | | ????? #??????# ????##== | | ????# ##???????# ????# = | | ????## ## #???????## ??## | | ?????###? # ?????### ### | | ????????? #??### ! | | ????????#%# ## ##??# %* | | ????????# #??##??# ! | | ???????? % ??????# # | | ????????% ?????# ## *% #### | | ???????? #?????# ##???### ##??? | | ???????? ?????????????????# ###??? | | ??????? #??????????????????# ??????? | | ???????????????????????????# ??????? | | ???????????????????????????#???????? | | ???????????????????????????????????? | | ???????????????????????????????????? | | ???????????????????????????????????? | | ???????????????????????????????????? | | ???????????????????????????????????? | | ???????????????????????????????????? | | ???????????????????????????????????? | | ???????????????????????????????????? | +----------------------------------------------------+ Best States ------------- Heat Dissipation 25 Energy Generation 10 Energy Capacity 125 Matter Stores 282 Matter Capacity 300 Sight Range 16 Terrain Scan Density 10 Evasion (%) 50 Recoil Reduction 1 Item Schematics ----------------- None Robot Schematics ------------------ None Fabricated ------------ Nothing Alien Tech Used ----------------- None Achievements -------------- Back For More Challenges ------------ None Game ------ Seed DirtyHypervelocityCalibrator Manual? 0 Play Time 00:10:10 Cumulative 165.1 hours Start 2022.03.22 @ 18:06:08 End 2022.03.22 @ 18:14:20 Sessions 1 Manual Loads 0 Difficulty Rogue Special Mode None Game No. 50 Rogue 33 Adventurer 17 Explorer 0 Win Type - Total 9 Types 6/0/2/1/0/0/0/0/0 Lore% 63 Gallery% 64 Achievement% 61 Wizard Run 0 Options --------- ASCII 0 Keyboard 0 Movement Arrows Keybinds 0 Fullscreen 1 Font 28/Dina Map View 72x54 Tactical HUD 1 Map Filters NONE Filters NONE Steam 1 RUN: 2c079cf3-0044-4981-93ea-0d7f1a04f0ad